[Event "Oslo Chess Festival 2018"]
[Site "Oslo"]
[Date "2018.10.07"]
[Round "10"]
[White "Rognes, Sven Erik"]
[Black "Hobber, Anders"]
[Result "0-1"]
[ECO "C00"]
[WhiteElo "1893"]
[BlackElo "2314"]
[Annotator "NA"]
[PlyCount "74"]
[EventDate "2018.09.30"]
[EventCountry "NOR"]
[SourceTitle "playchess.com"]
[Source "ChessBase"]
[SourceQuality "1"]
[TimeControl "40/5400+30:1800+30"]

{[%evp 8,72,-29,12,-21,32767,16,32767,7,7,11,32767,32767,32767,17,32767,0,32767,32767,32767,37,32767,32767,32767,20,32767,32767,32767,16,10,44,-4,0,-23,-31,32767,32767,-49,-36,-280,-291,-326,-338,-329,32767,-345,-342,-422,-477,-577,-567,-565,-637,32767,32767,32767,32767,32767,-29993,-29993,-29981,32767,32767,32767,32767,-1762,-5481]} 1. e4 {[%emt 0:00:00]} e6 {[%emt 0:00:00]} 2. Qe2 {[%emt 0:00:44]} c5 {[%emt 0:00:13]} 3. b3 {[%emt 0:00:34]} Nc6 {[%emt 0:02:14]} 4. Bb2 {[%emt 0:00:14] C00: French: Unusual White 2nd moves} Nf6 {[%emt 0:03:52]} (4... Nge7 5. Qh5 d5 6. Nf3 dxe4 7. Ng5 Ng6 8. Nc3 Be7 9. Ncxe4 Nd4 10. O-O-O Bd7 11. Re1 Bc6 {0-1 (42) Badmatsyrenov,O (2454)-Kryakvin,D (2591) Ekaterinburg 2018}) 5. e5 {[%emt 0:00:38]} Nd5 {[%emt 0:00:39]} 6. Nf3 {[%emt 0:00:48]} Be7 {[%emt 0:06:39] LiveBook: 3 Games} 7. g3 {[%emt 0:00:35]} O-O {[%emt 0:00:59]} 8. Bg2 {[%emt 0:00:21]} d6 {[%emt 0:07:42]} 9. O-O {[%emt 0:02:43]} dxe5 {[%emt 0:02:06]} 10. Nxe5 {[%emt 0:00:21]} Nd4 {[%emt 0:02:08]} 11. Qd1 {[%emt 0:05:39]} Bf6 $146 {[%emt 0:03:45]} 12. f4 {[%emt 0:03:34]} Qc7 {[%emt 0:03:44]} 13. c3 {[%emt 0:05:19]} Nc6 {[%emt 0:05:56]} 14. Ng4 {[%emt 0:05:54]} Be7 {[%emt 0:07:12]} 15. Na3 {[%emt 0:04:36]} Nf6 {[%emt 0:03:24]} 16. Nc2 {[%emt 0:10:32]} Nxg4 {[%emt 0:03:37]} 17. Qxg4 {[%emt 0:00:35]} Bf6 {[%emt 0:00:40]} 18. Qe2 {[%emt 0:03:42]} g6 {[%emt 0:05:09]} 19. d4 {[%emt 0:04:29]} cxd4 $1 {[%emt 0:00:41]} 20. Nxd4 {[%emt 0:00:24]} Nxd4 {[%emt 0:02:26]} 21. cxd4 {[%emt 0:00:11]} Qb6 {[%emt 0:02:00]} 22. Rad1 {[%emt 0:02:52]} Bd7 {[%emt 0:01:21]} 23. Kh1 $2 {[%emt 0:02:45]} ({Better is} 23. Rf2 $15) 23... Bb5 {[%emt 0:01:42]} 24. Qf3 {[%emt 0:07:24]} Bxf1 {[%emt 0:00:07]} 25. Qxf1 {[%emt 0:03:05]} Rfd8 {[%emt 0:01:20]} 26. Qf2 {[%emt 0:06:10]} Rd6 {[%emt 0:01:24]} 27. g4 {[%emt 0:02:23]} Rad8 {[%emt 0:00:43]} 28. Qg3 {[%emt 0:09:14]} Bxd4 {[%emt 0:01:03]} 29. Bxd4 {[%emt 0:00:10]} Rxd4 {[%emt 0:00:09]} 30. Re1 {[%emt 0:04:20]} Rd1 {[%emt 0:00:20]} 31. h3 {[%emt 0:01:37]} R8d3 {[%emt 0:00:58]} 32. Qh4 {[%emt 0:01:00]} Qe3 {[%emt 0:01:03]} 33. Rf1 {[%emt 0:02:51]} Qxf4 {[%emt 0:00:37]} 34. Kg1 {[%emt 0:00:55]} Rxf1+ {[%emt 0:01:26]} 35. Bxf1 {[%emt 0:00:08]} Rg3+ {[%emt 0:00:52]} 36. Bg2 {[%emt 0:00:50]} g5 $19 {[%emt 0:00:09]} 37. Qh5 {[%emt 0:01:22]} Qd2 {[%emt 0:00:07]} 0-1